[Event "*** Titled Tuesday Blitz"]
[Site "Chess.com"]
[Date "2020.05.26"]
[Round "6"]
[White "chiwii"]
[Black "Tsyhanchuk_Stanislav"]
[Result "0-1"]
[WhiteElo "2225"]
[BlackElo "2430"]
[TimeControl "180+1"]
[EndTime "11:06:04 PDT"]
[Termination "Tsyhanchuk_Stanislav won by resignation"]

1. e4 {[%clk 0:03:00.9]} 1... c5 {[%clk 0:02:59]} 2. Nf3 {[%clk 0:03:00.8]} 2...
Nc6 {[%clk 0:02:58.6]} 3. d4 {[%clk 0:03:01]} 3... cxd4 {[%clk 0:02:59.2]} 4.
Nxd4 {[%clk 0:03:00.8]} 4... Qb6 {[%clk 0:02:59.8]} 5. Nxc6 {[%clk 0:02:58]}
5... dxc6 {[%clk 0:03:00.1]} 6. Bd3 {[%clk 0:02:58.1]} 6... e5 {[%clk
0:03:00.1]} 7. O-O {[%clk 0:02:57.9]} 7... Nf6 {[%clk 0:03:00.9]} 8. Nc3 {[%clk
0:02:57.9]} 8... Be7 {[%clk 0:03:00.6]} 9. Kh1 {[%clk 0:02:57.6]} 9... O-O
{[%clk 0:03:00.4]} 10. h3 {[%clk 0:02:48.8]} 10... Be6 {[%clk 0:02:59.8]} 11. f4
{[%clk 0:02:47.1]} 11... exf4 {[%clk 0:02:59.7]} 12. Bxf4 {[%clk 0:02:48]} 12...
Qxb2 {[%clk 0:02:43.6]} 13. Be5 {[%clk 0:02:46.6]} 13... Nd7 {[%clk 0:02:31.3]}
14. Nd5 {[%clk 0:02:37.3]} 14... Qxe5 {[%clk 0:02:30.5]} 15. Nxe7+ {[%clk
0:02:37.4]} 15... Kh8 {[%clk 0:02:30.2]} 16. Nf5 {[%clk 0:02:37.6]} 16... g6
{[%clk 0:02:22.7]} 17. Ne3 {[%clk 0:02:13.1]} 17... Rad8 {[%clk 0:02:17.7]} 18.
Qe2 {[%clk 0:02:09.8]} 18... Nc5 {[%clk 0:02:13]} 19. Rab1 {[%clk 0:01:39.7]}
19... b5 {[%clk 0:02:07.4]} 20. Rb4 {[%clk 0:01:23.7]} 20... a5 {[%clk
0:02:03.8]} 21. Rbb1 {[%clk 0:01:21.7]} 21... Nxe4 {[%clk 0:01:47.2]} 22. Bxe4
{[%clk 0:01:21.7]} 22... Qxe4 {[%clk 0:01:47.6]} 23. Qf2 {[%clk 0:01:21.8]}
23... f5 {[%clk 0:01:44.6]} 24. Rbe1 {[%clk 0:01:19.1]} 24... Bxa2 {[%clk
0:01:28.5]} 25. Ng4 {[%clk 0:01:13.6]} 25... Qd4 {[%clk 0:01:27.9]} 26. Ne3
{[%clk 0:01:07.2]} 26... f4 {[%clk 0:01:19.4]} 27. Ng4 {[%clk 0:01:04.2]} 27...
Qxf2 {[%clk 0:01:19.1]} 28. Rxf2 {[%clk 0:01:04.9]} 28... Bd5 {[%clk 0:01:14.4]}
29. Ne5 {[%clk 0:01:04.7]} 29... Kg7 {[%clk 0:01:09.8]} 30. Nd3 {[%clk
0:01:02.7]} 30... f3 {[%clk 0:01:08]} 31. g4 {[%clk 0:01:00.7]} 31... Rde8
{[%clk 0:01:06.7]} 32. Ref1 {[%clk 0:00:57.3]} 32... Re2 {[%clk 0:01:05.5]} 33.
Nf4 {[%clk 0:00:57.4]} 33... Rxf2 {[%clk 0:01:05]} 34. Rxf2 {[%clk 0:00:58.3]}
0-1

[Event "*** Titled Tuesday Blitz"]
[Site "Chess.com"]
[Date "2020.05.26"]
[Round "6"]
[White "Djager97"]
[Black "Alexandercs432"]
[Result "1-0"]
[WhiteElo "2391"]
[BlackElo "2126"]
[TimeControl "180+1"]
[EndTime "11:06:07 PDT"]
[Termination "Djager97 won by resignation"]

1. e4 {[%clk 0:03:00.9]} 1... e5 {[%clk 0:02:59.5]} 2. Nf3 {[%clk 0:03:00.8]}
2... Nf6 {[%clk 0:02:59.8]} 3. Nc3 {[%clk 0:03:00.4]} 3... Nc6 {[%clk
0:02:59.3]} 4. d4 {[%clk 0:03:00.9]} 4... exd4 {[%clk 0:02:59.3]} 5. Nxd4 {[%clk
0:03:01.8]} 5... Bb4 {[%clk 0:02:59.7]} 6. Nxc6 {[%clk 0:03:02.1]} 6... bxc6
{[%clk 0:03:00.6]} 7. Bd3 {[%clk 0:03:02.1]} 7... d5 {[%clk 0:03:00.7]} 8. exd5
{[%clk 0:03:02.6]} 8... cxd5 {[%clk 0:03:01.6]} 9. O-O {[%clk 0:03:03.1]} 9...
O-O {[%clk 0:03:02.1]} 10. h3 {[%clk 0:03:01.5]} 10... c6 {[%clk 0:03:01.4]} 11.
Qf3 {[%clk 0:03:01.8]} 11... Bd6 {[%clk 0:03:00.9]} 12. Re1 {[%clk 0:03:01.6]}
12... Rb8 {[%clk 0:02:57]} 13. b3 {[%clk 0:03:01]} 13... Re8 {[%clk 0:02:49.5]}
14. Rxe8+ {[%clk 0:02:56.1]} 14... Qxe8 {[%clk 0:02:49]} 15. Bf4 {[%clk
0:02:55.2]} 15... Bxf4 {[%clk 0:02:31]} 16. Qxf4 {[%clk 0:02:56.1]} 16... Bd7
{[%clk 0:02:13.6]} 17. Qd4 {[%clk 0:02:53]} 17... Ra8 {[%clk 0:01:25.8]} 18. Na4
{[%clk 0:02:49.9]} 18... h6 {[%clk 0:01:19]} 19. Nc5 {[%clk 0:02:38.7]} 19...
Qe7 {[%clk 0:01:08.4]} 20. a4 {[%clk 0:02:20.9]} 20... a5 {[%clk 0:01:01.2]} 21.
Qc3 {[%clk 0:02:20.4]} 21... Ne4 {[%clk 0:00:52.1]} 22. Bxe4 {[%clk 0:02:02.1]}
22... dxe4 {[%clk 0:00:53]} 23. Re1 {[%clk 0:02:02]} 23... f5 {[%clk 0:00:48.2]}
24. f3 {[%clk 0:01:59]} 24... Be8 {[%clk 0:00:10.1]} 25. fxe4 {[%clk 0:01:55.4]}
25... fxe4 {[%clk 0:00:10.3]} 26. Rxe4 {[%clk 0:01:52.8]} 26... Qg5 {[%clk
0:00:08.9]} 27. Ne6 {[%clk 0:01:37.9]} 27... Qg6 {[%clk 0:00:05.2]} 28. Rg4
{[%clk 0:01:33.4]} 1-0

[Event "*** Titled Tuesday Blitz"]
[Site "Chess.com"]
[Date "2020.05.26"]
[Round "6"]
[White "Walter_White_Poland"]
[Black "tamarozi99"]
[Result "1-0"]
[WhiteElo "2188"]
[BlackElo "1995"]
[TimeControl "180+1"]
[EndTime "11:06:07 PDT"]
[Termination "Walter_White_Poland won by resignation"]

1. e4 {[%clk 0:03:00.9]} 1... c5 {[%clk 0:02:58.6]} 2. Nf3 {[%clk 0:03:00.9]}
2... Nc6 {[%clk 0:02:58]} 3. d4 {[%clk 0:03:00.8]} 3... cxd4 {[%clk 0:02:58.9]}
4. Nxd4 {[%clk 0:03:00.8]} 4... g6 {[%clk 0:02:59]} 5. c4 {[%clk 0:02:59.9]}
5... d6 {[%clk 0:02:54.8]} 6. Nc3 {[%clk 0:02:59.3]} 6... Nf6 {[%clk 0:02:53.4]}
7. Be2 {[%clk 0:02:57.4]} 7... Nxd4 {[%clk 0:02:53.1]} 8. Qxd4 {[%clk 0:02:57]}
8... Bg7 {[%clk 0:02:53.3]} 9. Be3 {[%clk 0:02:57]} 9... O-O {[%clk 0:02:53.2]}
10. Qd2 {[%clk 0:02:57]} 10... a5 {[%clk 0:02:44.6]} 11. Rb1 {[%clk 0:02:43.1]}
11... a4 {[%clk 0:02:41.4]} 12. f3 {[%clk 0:02:32.5]} 12... Bd7 {[%clk
0:02:39.4]} 13. b4 {[%clk 0:02:25.6]} 13... axb3 {[%clk 0:02:36.2]} 14. axb3
{[%clk 0:02:25.8]} 14... Qa5 {[%clk 0:02:31.4]} 15. Nd5 {[%clk 0:02:22.4]} 15...
Nxd5 {[%clk 0:02:13.4]} 16. Qxa5 {[%clk 0:02:18.6]} 16... Rxa5 {[%clk
0:02:12.1]} 17. cxd5 {[%clk 0:02:08.8]} 17... Bc3+ {[%clk 0:02:00.2]} 18. Kf2
{[%clk 0:02:07.1]} 18... Ra2 {[%clk 0:01:59.8]} 19. Rhc1 {[%clk 0:01:55.5]}
19... Bb4 {[%clk 0:01:53.8]} 20. Kf1 {[%clk 0:01:44.5]} 20... Rfa8 {[%clk
0:01:37.7]} 21. Rc7 {[%clk 0:01:31.7]} 21... Bc8 {[%clk 0:01:21.6]} 22. Rbc1
{[%clk 0:01:17.3]} 22... Bh3 {[%clk 0:00:23.3]} 23. gxh3 {[%clk 0:01:13.8]}
23... R8a4 {[%clk 0:00:21.4]} 24. bxa4 {[%clk 0:01:03.3]} 1-0

[Event "*** Titled Tuesday Blitz"]
[Site "Chess.com"]
[Date "2020.05.26"]
[Round "6"]
[White "Ziachess74"]
[Black "MichailovM"]
[Result "0-1"]
[WhiteElo "2598"]
[BlackElo "2426"]
[TimeControl "180+1"]
[EndTime "11:06:10 PDT"]
[Termination "MichailovM won by resignation"]

1. d4 {[%clk 0:03:00.9]} 1... Nf6 {[%clk 0:02:59.5]} 2. Bg5 {[%clk 0:02:58.1]}
2... d5 {[%clk 0:02:59.2]} 3. e3 {[%clk 0:02:56.9]} 3... e6 {[%clk 0:02:54.4]}
4. Nd2 {[%clk 0:02:43.6]} 4... c5 {[%clk 0:02:53.7]} 5. c3 {[%clk 0:02:41.9]}
5... Nc6 {[%clk 0:02:53.8]} 6. Bd3 {[%clk 0:02:41.1]} 6... Bd6 {[%clk 0:02:52]}
7. f4 {[%clk 0:02:39.7]} 7... cxd4 {[%clk 0:02:51.5]} 8. exd4 {[%clk 0:02:38.8]}
8... h6 {[%clk 0:02:51.8]} 9. Bxf6 {[%clk 0:02:34.7]} 9... Qxf6 {[%clk
0:02:52.7]} 10. g3 {[%clk 0:02:27.8]} 10... Bd7 {[%clk 0:02:47]} 11. Ne2 {[%clk
0:02:15.5]} 11... O-O-O {[%clk 0:02:46.2]} 12. Nf3 {[%clk 0:02:04.1]} 12... Kb8
{[%clk 0:02:45.4]} 13. Qd2 {[%clk 0:01:58.8]} 13... Rc8 {[%clk 0:02:41.8]} 14.
Ne5 {[%clk 0:01:56.3]} 14... Be8 {[%clk 0:02:41.9]} 15. O-O-O {[%clk 0:01:38.5]}
15... Qe7 {[%clk 0:02:24.1]} 16. Kb1 {[%clk 0:01:35.9]} 16... Na5 {[%clk
0:02:18.9]} 17. Nc1 {[%clk 0:01:32.3]} 17... Qc7 {[%clk 0:01:57.4]} 18. Rde1
{[%clk 0:01:22.2]} 18... h5 {[%clk 0:01:49.6]} 19. Bc2 {[%clk 0:01:12.4]} 19...
h4 {[%clk 0:01:44.3]} 20. Ncd3 {[%clk 0:01:07.7]} 20... f6 {[%clk 0:01:39.8]}
21. Nf3 {[%clk 0:01:06.3]} 21... hxg3 {[%clk 0:01:38.5]} 22. hxg3 {[%clk
0:01:07.2]} 22... Rxh1 {[%clk 0:01:37.6]} 23. Rxh1 {[%clk 0:01:08.1]} 23... Bg6
{[%clk 0:01:34.7]} 24. Re1 {[%clk 0:01:00.9]} 24... Be4 {[%clk 0:01:28.7]} 25.
Qe2 {[%clk 0:00:56.3]} 25... Nc4 {[%clk 0:01:27.5]} 26. Bb3 {[%clk 0:00:42.4]}
26... Nxb2 {[%clk 0:01:21.2]} 27. Bc2 {[%clk 0:00:32.7]} 27... Qxc3 {[%clk
0:01:17]} 28. Nxb2 {[%clk 0:00:28.4]} 28... Bxc2+ {[%clk 0:01:16.7]} 29. Ka1
{[%clk 0:00:27.6]} 29... Ba3 {[%clk 0:01:16.6]} 0-1

[Event "*** Titled Tuesday Blitz"]
[Site "Chess.com"]
[Date "2020.05.26"]
[Round "6"]
[White "tgpgoat"]
[Black "mr65"]
[Result "1-0"]
[WhiteElo "2069"]
[BlackElo "2168"]
[TimeControl "180+1"]
[EndTime "11:06:11 PDT"]
[Termination "tgpgoat won by resignation"]

1. e4 {[%clk 0:03:00.9]} 1... e5 {[%clk 0:02:58.6]} 2. Nf3 {[%clk 0:03:00.9]}
2... Nc6 {[%clk 0:02:57.1]} 3. Bc4 {[%clk 0:03:00.8]} 3... Nf6 {[%clk
0:02:55.9]} 4. d4 {[%clk 0:03:00.3]} 4... exd4 {[%clk 0:02:55]} 5. e5 {[%clk
0:03:00.7]} 5... d5 {[%clk 0:02:54]} 6. Bb5 {[%clk 0:03:00.5]} 6... Ne4 {[%clk
0:02:53.1]} 7. Nxd4 {[%clk 0:03:00.6]} 7... Bc5 {[%clk 0:02:52.8]} 8. Be3 {[%clk
0:02:59.8]} 8... Bd7 {[%clk 0:02:50.7]} 9. Bxc6 {[%clk 0:02:59.5]} 9... bxc6
{[%clk 0:02:49.7]} 10. O-O {[%clk 0:02:57.1]} 10... O-O {[%clk 0:02:48.2]} 11.
f3 {[%clk 0:02:56.4]} 11... Ng5 {[%clk 0:02:46]} 12. f4 {[%clk 0:02:56.3]} 12...
Ne4 {[%clk 0:02:45.8]} 13. Nd2 {[%clk 0:02:56.1]} 13... Nxd2 {[%clk 0:02:41.4]}
14. Qxd2 {[%clk 0:02:57]} 14... Bb6 {[%clk 0:02:40.1]} 15. c3 {[%clk 0:02:54.3]}
15... Qe7 {[%clk 0:02:36.5]} 16. Rae1 {[%clk 0:02:51.7]} 16... f6 {[%clk
0:02:30.8]} 17. Bf2 {[%clk 0:02:42.9]} 17... fxe5 {[%clk 0:02:26.2]} 18. fxe5
{[%clk 0:02:43.8]} 18... Rae8 {[%clk 0:02:17]} 19. Kh1 {[%clk 0:02:36.8]} 19...
c5 {[%clk 0:02:08.3]} 20. Nc2 {[%clk 0:02:32.2]} 20... Qe6 {[%clk 0:01:55.7]}
21. Bg3 {[%clk 0:02:29.8]} 21... Bb5 {[%clk 0:01:49.7]} 22. Rxf8+ {[%clk
0:02:28.6]} 22... Rxf8 {[%clk 0:01:49.1]} 23. b3 {[%clk 0:02:28.1]} 23... Be8
{[%clk 0:01:40.5]} 24. h3 {[%clk 0:02:18.7]} 24... c6 {[%clk 0:01:39.7]} 25. Kh2
{[%clk 0:02:18.6]} 25... Bg6 {[%clk 0:01:38.7]} 26. Ne3 {[%clk 0:02:18.1]} 26...
Bc7 {[%clk 0:01:35.1]} 27. Ng4 {[%clk 0:02:17.4]} 27... Bh5 {[%clk 0:01:31.8]}
28. Nf2 {[%clk 0:02:16.9]} 28... h6 {[%clk 0:01:25.1]} 29. Nd3 {[%clk
0:02:16.2]} 29... Bg6 {[%clk 0:01:15.6]} 30. Nxc5 {[%clk 0:02:14.7]} 30... Qe7
{[%clk 0:01:12.3]} 31. Nd3 {[%clk 0:02:14.4]} 31... Bxd3 {[%clk 0:01:10.4]} 32.
Qxd3 {[%clk 0:02:13.9]} 32... Qe6 {[%clk 0:01:07.1]} 33. c4 {[%clk 0:01:51.8]}
33... h5 {[%clk 0:00:58.6]} 34. cxd5 {[%clk 0:01:50.6]} 34... cxd5 {[%clk
0:00:55.7]} 35. Qe2 {[%clk 0:01:43.7]} 35... Rf5 {[%clk 0:00:49.3]} 36. h4
{[%clk 0:01:36]} 36... Qg6 {[%clk 0:00:44.7]} 37. Qe3 {[%clk 0:01:31.5]} 37...
Qe6 {[%clk 0:00:40]} 38. Qxa7 {[%clk 0:01:28.4]} 38... Bxe5 {[%clk 0:00:38.9]}
39. Bxe5 {[%clk 0:01:20.9]} 39... Rxe5 {[%clk 0:00:38.6]} 40. Qb8+ {[%clk
0:01:21]} 1-0

[Event "*** Titled Tuesday Blitz"]
[Site "Chess.com"]
[Date "2020.05.26"]
[Round "6"]
[White "Tayson_7"]
[Black "Zhuu96"]
[Result "1-0"]
[WhiteElo "2644"]
[BlackElo "2835"]
[TimeControl "180+1"]
[EndTime "11:06:12 PDT"]
[Termination "Tayson_7 won by checkmate"]

1. e4 {[%clk 0:03:00.6]} 1... c5 {[%clk 0:02:23.4]} 2. Nc3 {[%clk 0:02:58.7]}
2... Nc6 {[%clk 0:02:22.3]} 3. Nge2 {[%clk 0:02:56.9]} 3... a6 {[%clk 0:02:22]}
4. g3 {[%clk 0:02:55.7]} 4... b5 {[%clk 0:02:21.8]} 5. Bg2 {[%clk 0:02:55.7]}
5... Bb7 {[%clk 0:02:22.1]} 6. d4 {[%clk 0:02:55.8]} 6... cxd4 {[%clk
0:02:21.9]} 7. Nxd4 {[%clk 0:02:56.7]} 7... e6 {[%clk 0:02:21.5]} 8. O-O {[%clk
0:02:56.9]} 8... Bc5 {[%clk 0:02:19.3]} 9. Be3 {[%clk 0:02:51]} 9... Qb6 {[%clk
0:02:17.9]} 10. Nce2 {[%clk 0:02:23.8]} 10... Nf6 {[%clk 0:02:16.2]} 11. c3
{[%clk 0:01:55]} 11... Qa7 {[%clk 0:02:04]} 12. h3 {[%clk 0:01:42.9]} 12... O-O
{[%clk 0:02:01]} 13. b4 {[%clk 0:01:42.7]} 13... Bb6 {[%clk 0:02:00.3]} 14. a4
{[%clk 0:01:41.9]} 14... Nxd4 {[%clk 0:02:00.3]} 15. Nxd4 {[%clk 0:01:35.3]}
15... Bxe4 {[%clk 0:01:55.6]} 16. axb5 {[%clk 0:01:24.4]} 16... Bxg2 {[%clk
0:01:53.6]} 17. Kxg2 {[%clk 0:01:25.3]} 17... Bxd4 {[%clk 0:01:49.2]} 18. Bxd4
{[%clk 0:01:17.4]} 18... Qb7+ {[%clk 0:01:48.9]} 19. Kg1 {[%clk 0:01:15.8]}
19... Qxb5 {[%clk 0:01:40.6]} 20. Ra5 {[%clk 0:01:13.5]} 20... Qb8 {[%clk
0:01:17.4]} 21. Bxf6 {[%clk 0:00:44]} 21... gxf6 {[%clk 0:01:16]} 22. Rh5 {[%clk
0:00:25.7]} 22... f5 {[%clk 0:01:11.1]} 23. Qd4 {[%clk 0:00:22.2]} 23... d5
{[%clk 0:01:03.1]} 24. Rg5# {[%clk 0:00:21.6]} 1-0

[Event "*** Titled Tuesday Blitz"]
[Site "Chess.com"]
[Date "2020.05.26"]
[Round "6"]
[White "Carnivoras"]
[Black "eljanov"]
[Result "1-0"]
[WhiteElo "2629"]
[BlackElo "2853"]
[TimeControl "180+1"]
[EndTime "11:06:18 PDT"]
[Termination "Carnivoras won by resignation"]

1. d4 {[%clk 0:03:00.9]} 1... Nf6 {[%clk 0:02:56.2]} 2. Nf3 {[%clk 0:03:00.4]}
2... e6 {[%clk 0:02:55.8]} 3. Bg5 {[%clk 0:02:59.8]} 3... b6 {[%clk 0:02:54]} 4.
e4 {[%clk 0:02:57.4]} 4... h6 {[%clk 0:02:53.4]} 5. Bxf6 {[%clk 0:02:56.7]} 5...
Qxf6 {[%clk 0:02:54.3]} 6. Nbd2 {[%clk 0:02:56.2]} 6... Bb7 {[%clk 0:02:54.4]}
7. Bd3 {[%clk 0:02:56.4]} 7... d6 {[%clk 0:02:48.7]} 8. O-O {[%clk 0:02:56.1]}
8... Nd7 {[%clk 0:02:46]} 9. Qe2 {[%clk 0:02:55.8]} 9... a6 {[%clk 0:02:43]} 10.
a4 {[%clk 0:02:54.3]} 10... g6 {[%clk 0:02:37.1]} 11. c3 {[%clk 0:02:48]} 11...
Bg7 {[%clk 0:02:37]} 12. h3 {[%clk 0:02:46.1]} 12... O-O {[%clk 0:02:36.8]} 13.
Rfe1 {[%clk 0:02:46]} 13... Qe7 {[%clk 0:02:32.4]} 14. Nc4 {[%clk 0:02:42.2]}
14... e5 {[%clk 0:02:28.5]} 15. d5 {[%clk 0:02:39.6]} 15... f5 {[%clk 0:02:13]}
16. b4 {[%clk 0:02:23.6]} 16... Nf6 {[%clk 0:01:52.5]} 17. Nh4 {[%clk
0:01:51.3]} 17... fxe4 {[%clk 0:01:36.4]} 18. Nxg6 {[%clk 0:01:50.8]} 18... Qf7
{[%clk 0:01:34.5]} 19. Bxe4 {[%clk 0:01:38.7]} 19... Nxe4 {[%clk 0:01:32.5]} 20.
Qxe4 {[%clk 0:01:39.6]} 20... Qxf2+ {[%clk 0:01:25.8]} 21. Kh1 {[%clk
0:01:37.2]} 21... Rf7 {[%clk 0:01:15.3]} 22. Ne3 {[%clk 0:01:35.1]} 22... Qg3
{[%clk 0:00:33.7]} 23. Rf1 {[%clk 0:01:29]} 23... Qg5 {[%clk 0:00:23.4]} 24.
Rxf7 {[%clk 0:01:22.4]} 24... Kxf7 {[%clk 0:00:23.7]} 25. Rf1+ {[%clk
0:01:22.1]} 25... Kg8 {[%clk 0:00:24]} 26. Nf5 {[%clk 0:01:16.5]} 26... Re8
{[%clk 0:00:21.3]} 27. h4 {[%clk 0:01:06.9]} 27... Qf6 {[%clk 0:00:18.1]} 28.
Nxh6+ {[%clk 0:01:05.7]} 1-0

[Event "*** Titled Tuesday Blitz"]
[Site "Chess.com"]
[Date "2020.05.26"]
[Round "6"]
[White "AlexZambrano"]
[Black "poummba"]
[Result "0-1"]
[WhiteElo "2284"]
[BlackElo "2476"]
[TimeControl "180+1"]
[EndTime "11:06:21 PDT"]
[Termination "poummba won by resignation"]

1. Nf3 {[%clk 0:03:00]} 1... g6 {[%clk 0:02:59.9]} 2. g3 {[%clk 0:02:59.7]} 2...
Bg7 {[%clk 0:03:00.8]} 3. Bg2 {[%clk 0:02:59.5]} 3... d6 {[%clk 0:03:00.7]} 4.
d4 {[%clk 0:02:59.8]} 4... Nc6 {[%clk 0:03:00]} 5. O-O {[%clk 0:02:59.3]} 5...
Nf6 {[%clk 0:02:57.7]} 6. c4 {[%clk 0:02:59.2]} 6... O-O {[%clk 0:02:57.8]} 7.
Nc3 {[%clk 0:02:59.6]} 7... Bf5 {[%clk 0:02:56.8]} 8. Re1 {[%clk 0:02:58.9]}
8... Ne4 {[%clk 0:02:56.7]} 9. Nxe4 {[%clk 0:02:53.2]} 9... Bxe4 {[%clk
0:02:56.5]} 10. Be3 {[%clk 0:02:53.7]} 10... e6 {[%clk 0:02:47.3]} 11. Rc1
{[%clk 0:02:47.5]} 11... d5 {[%clk 0:02:46.9]} 12. c5 {[%clk 0:02:32.1]} 12...
a5 {[%clk 0:02:46.1]} 13. Bg5 {[%clk 0:01:58.2]} 13... Qc8 {[%clk 0:02:40.8]}
14. Qa4 {[%clk 0:01:51.9]} 14... Bxf3 {[%clk 0:02:36]} 15. Bxf3 {[%clk
0:01:46.8]} 15... Nxd4 {[%clk 0:02:34.2]} 16. Bg2 {[%clk 0:01:38.9]} 16... h6
{[%clk 0:02:10.8]} 17. Bd2 {[%clk 0:01:02.9]} 17... Nc6 {[%clk 0:02:00.7]} 18.
b3 {[%clk 0:00:51.9]} 18... Nd8 {[%clk 0:01:46]} 19. Qh4 {[%clk 0:00:45.5]}
19... g5 {[%clk 0:01:43.5]} 20. Qh5 {[%clk 0:00:44.7]} 20... Nc6 {[%clk
0:01:34.7]} 21. h4 {[%clk 0:00:43.4]} 21... f6 {[%clk 0:01:34.7]} 22. e4 {[%clk
0:00:28]} 22... d4 {[%clk 0:01:31]} 23. hxg5 {[%clk 0:00:10.7]} 23... fxg5
{[%clk 0:01:30.5]} 24. e5 {[%clk 0:00:11.2]} 24... Nxe5 {[%clk 0:01:30.5]} 25.
Be4 {[%clk 0:00:09]} 25... Qe8 {[%clk 0:01:28.6]} 26. Qh1 {[%clk 0:00:07.5]}
26... c6 {[%clk 0:01:23.7]} 27. Re2 {[%clk 0:00:02.1]} 0-1

[Event "*** Titled Tuesday Blitz"]
[Site "Chess.com"]
[Date "2020.05.26"]
[Round "6"]
[White "Klaus1995"]
[Black "tan275"]
[Result "1-0"]
[WhiteElo "1830"]
[BlackElo "2180"]
[TimeControl "180+1"]
[EndTime "11:06:22 PDT"]
[Termination "Klaus1995 won by resignation"]

1. e4 {[%clk 0:03:00.9]} 1... c5 {[%clk 0:02:58.5]} 2. Nf3 {[%clk 0:02:59.9]}
2... Nc6 {[%clk 0:02:58.6]} 3. d4 {[%clk 0:02:59.8]} 3... cxd4 {[%clk
0:02:58.8]} 4. Nxd4 {[%clk 0:03:00.5]} 4... g6 {[%clk 0:02:59.4]} 5. c4 {[%clk
0:02:59.5]} 5... Bg7 {[%clk 0:02:59.4]} 6. Be3 {[%clk 0:02:59.6]} 6... Nf6
{[%clk 0:02:59.9]} 7. Nc3 {[%clk 0:02:59.1]} 7... O-O {[%clk 0:03:00.3]} 8. Be2
{[%clk 0:02:58.7]} 8... d6 {[%clk 0:03:00.5]} 9. O-O {[%clk 0:02:58.1]} 9... Bd7
{[%clk 0:03:01]} 10. Rc1 {[%clk 0:02:55.3]} 10... Nxd4 {[%clk 0:02:53.1]} 11.
Bxd4 {[%clk 0:02:54.7]} 11... Bc6 {[%clk 0:02:53.3]} 12. Bd3 {[%clk 0:02:46.8]}
12... a5 {[%clk 0:02:48.5]} 13. a4 {[%clk 0:02:43.6]} 13... Nd7 {[%clk
0:02:47.2]} 14. Bxg7 {[%clk 0:02:42.3]} 14... Kxg7 {[%clk 0:02:46.8]} 15. Nd5
{[%clk 0:02:42.3]} 15... Nc5 {[%clk 0:02:42.9]} 16. Bc2 {[%clk 0:02:31.6]} 16...
Bxd5 {[%clk 0:02:26.9]} 17. exd5 {[%clk 0:02:29.4]} 17... Qb6 {[%clk 0:02:15.9]}
18. Qd4+ {[%clk 0:02:28.4]} 18... f6 {[%clk 0:02:14.4]} 19. Rce1 {[%clk
0:02:25.4]} 19... Rfe8 {[%clk 0:02:13.8]} 20. Qc3 {[%clk 0:02:24]} 20... Qb4
{[%clk 0:02:12.4]} 21. Qxb4 {[%clk 0:02:08.9]} 21... axb4 {[%clk 0:02:13.3]} 22.
b3 {[%clk 0:02:09.3]} 22... Kf7 {[%clk 0:02:08.1]} 23. Re3 {[%clk 0:02:08]}
23... e5 {[%clk 0:02:04.3]} 24. dxe6+ {[%clk 0:02:06.3]} 24... Rxe6 {[%clk
0:02:02.4]} 25. Rxe6 {[%clk 0:02:05.1]} 25... Kxe6 {[%clk 0:01:57.8]} 26. Re1+
{[%clk 0:02:05]} 26... Kd7 {[%clk 0:01:57.8]} 27. f4 {[%clk 0:02:04.9]} 27...
Re8 {[%clk 0:01:55.9]} 28. Rxe8 {[%clk 0:01:56.8]} 28... Kxe8 {[%clk 0:01:56.8]}
29. Kf2 {[%clk 0:01:53.2]} 29... Ke7 {[%clk 0:01:46.7]} 30. h4 {[%clk
0:01:52.2]} 30... f5 {[%clk 0:01:40.2]} 31. h5 {[%clk 0:01:49.8]} 31... Ke6
{[%clk 0:01:36.2]} 32. hxg6 {[%clk 0:01:49.4]} 32... hxg6 {[%clk 0:01:37.1]} 33.
Ke3 {[%clk 0:01:49.6]} 33... d5 {[%clk 0:01:35]} 34. Kd4 {[%clk 0:01:38.9]}
34... b6 {[%clk 0:01:23.8]} 35. cxd5+ {[%clk 0:01:38.6]} 35... Kd6 {[%clk
0:01:23.8]} 36. Kc4 {[%clk 0:01:23.1]} 36... Nd7 {[%clk 0:01:16.1]} 37. Bd1
{[%clk 0:01:18.4]} 37... Nc5 {[%clk 0:01:12.2]} 38. Bf3 {[%clk 0:01:17]} 38...
Nd7 {[%clk 0:00:54.2]} 39. Kxb4 {[%clk 0:01:16.3]} 39... Nf6 {[%clk 0:00:44.6]}
40. Kb5 {[%clk 0:01:14.7]} 40... Nd7 {[%clk 0:00:44.5]} 41. b4 {[%clk
0:01:13.4]} 1-0

[Event "*** Titled Tuesday Blitz"]
[Site "Chess.com"]
[Date "2020.05.26"]
[Round "6"]
[White "Escanor89"]
[Black "JLRHei"]
[Result "1-0"]
[WhiteElo "2566"]
[BlackElo "2336"]
[TimeControl "180+1"]
[EndTime "11:06:23 PDT"]
[Termination "Escanor89 won by checkmate"]

1. c4 {[%clk 0:03:00.9]} 1... Nf6 {[%clk 0:02:58.7]} 2. Nc3 {[%clk 0:03:00.2]}
2... g6 {[%clk 0:02:58.7]} 3. e4 {[%clk 0:02:59.4]} 3... d6 {[%clk 0:02:58.5]}
4. d4 {[%clk 0:02:59.3]} 4... Bg7 {[%clk 0:02:58.8]} 5. Nf3 {[%clk 0:02:59.2]}
5... O-O {[%clk 0:02:59.3]} 6. Be2 {[%clk 0:02:59.3]} 6... c5 {[%clk 0:02:59.8]}
7. O-O {[%clk 0:02:58.2]} 7... Bg4 {[%clk 0:02:57.9]} 8. dxc5 {[%clk 0:02:48.1]}
8... dxc5 {[%clk 0:02:56.7]} 9. Be3 {[%clk 0:02:42]} 9... Bxf3 {[%clk
0:02:46.2]} 10. Bxf3 {[%clk 0:02:39.1]} 10... Nbd7 {[%clk 0:02:46.3]} 11. Be2
{[%clk 0:02:23.1]} 11... Qa5 {[%clk 0:02:24.8]} 12. f4 {[%clk 0:02:09.6]} 12...
Rfd8 {[%clk 0:01:55.8]} 13. Qc2 {[%clk 0:02:07.8]} 13... Nb8 {[%clk 0:01:40.3]}
14. e5 {[%clk 0:01:58.6]} 14... Nfd7 {[%clk 0:01:33.6]} 15. Bf3 {[%clk
0:01:56.6]} 15... Nc6 {[%clk 0:01:32.6]} 16. Bxc6 {[%clk 0:01:51.5]} 16... bxc6
{[%clk 0:01:32.3]} 17. Rad1 {[%clk 0:01:46.5]} 17... Rab8 {[%clk 0:01:23.5]} 18.
b3 {[%clk 0:01:45.9]} 18... f6 {[%clk 0:01:09.7]} 19. exf6 {[%clk 0:01:32.9]}
19... Nxf6 {[%clk 0:01:07.8]} 20. h3 {[%clk 0:01:25.1]} 20... Ng4 {[%clk
0:00:39.5]} 21. hxg4 {[%clk 0:01:16.6]} 21... Bxc3 {[%clk 0:00:39.6]} 22. Qe4
{[%clk 0:01:11.9]} 22... Qxa2 {[%clk 0:00:28.7]} 23. Rxd8+ {[%clk 0:01:07.5]}
23... Rxd8 {[%clk 0:00:28]} 24. Qxe7 {[%clk 0:01:06.6]} 24... Rd3 {[%clk
0:00:08.3]} 25. Bxc5 {[%clk 0:01:02.2]} 25... Rd2 {[%clk 0:00:04.8]} 26. Qf8#
{[%clk 0:01:01.3]} 1-0